bitfinex-derivatives/quotes_BTCF0:USTF0_20250609
["timestamp","ask_amount","ask_price","bid_price","bid_amount"]
[1749511153537,0.47467937,109910.0,109900.0,1.2336777]
[1749511153839,0.47467937,109910.0,109900.0,1.39800817]
[1749511153840,0.96619947,109910.0,109900.0,1.39800817]
[1749511154040,0.833769,109910.0,109900.0,1.42860817]
[1749511155034,0.833769,109910.0,109900.0,1.2961777]
[1749511156541,0.833769,109910.0,109900.0,1.42860817]
[1749511156741,0.2293234,109910.0,109900.0,1.25604294]
[1749511157045,0.5878434,109910.0,109900.0,1.43100817]
[1749511157642,0.769729,109910.0,109900.0,1.43100817]
[1749511157847,0.5878434,109910.0,109900.0,1.43100817]
[1749511158039,0.1653234,109910.0,109900.0,1.85352817]
[1749511158343,0.1653234,109910.0,109900.0,1.71156294]
[1749511158545,0.0651634,109910.0,109900.0,1.90981453]
[1749511158746,0.32760427,109940.0,109930.0,0.1818525]
[1749511159043,0.97343864,109940.0,109930.0,1.14945242]
[1749511159350,0.37306567,109940.0,109930.0,1.18015242]
[1749511159545,0.79554567,109940.0,109930.0,1.18015242]
[1749511159846,0.79554567,109940.0,109930.0,1.21315242]
[1749511160248,0.80054567,109940.0,109930.0,1.21315242]
[1749511160445,0.80454567,109940.0,109930.0,1.21315242]
[1749511160648,0.86634567,109940.0,109930.0,1.21315242]
[1749511160947,0.99877614,109940.0,109930.0,1.21315242]
[1749511161145,0.38206567,109940.0,109930.0,1.21315242]
[1749511161348,0.93693614,109940.0,109930.0,1.21315242]
[1749511161846,0.99873614,109940.0,109930.0,1.21315242]
[1749511162847,0.99873614,109940.0,109930.0,1.22679242]
[1749511163045,0.99873614,109940.0,109930.0,1.23133242]
[1749511164846,0.86630567,109940.0,109930.0,1.23133242]
[1749511165045,0.99873614,109940.0,109930.0,1.23133242]
[1749511166645,0.99873614,109940.0,109930.0,1.31624778]
[1749511167750,0.99873614,109940.0,109930.0,1.34824778]
[1749511168747,0.99873614,109940.0,109930.0,1.23467833]
[1749511169249,0.17176684,109940.0,109930.0,1.23467833]
[1749511169446,0.29093237,109940.0,109930.0,1.23467833]
[1749511169645,0.71321237,109940.0,109930.0,1.26333242]
[1749511172350,0.71321237,109940.0,109930.0,1.13090195]
[1749511172652,0.71321237,109940.0,109930.0,0.9843325]
[1749511172953,0.91034284,109940.0,109930.0,1.11676297]
[1749511173755,0.91034284,109940.0,109930.0,1.20161957]
[1749511173947,0.91034284,109940.0,109930.0,1.11676297]
[1749511175044,0.91034284,109940.0,109930.0,1.23033242]
[1749511175353,1.04277331,109940.0,109930.0,0.10303451]
[1749511175556,1.04277331,109940.0,109930.0,0.06061341]
[1749511177253,0.91030362,109940.0,109930.0,0.06061341]
[1749511179158,0.91030362,109940.0,109930.0,0.24246591]
[1749511179359,0.91030362,109940.0,109930.0,0.60326591]
[1749511179760,0.91030362,109940.0,109930.0,0.65983847]
[1749511184166,0.91030362,109940.0,109930.0,0.07475256]
[1749511184463,0.91030362,109940.0,109930.0,0.06066716]
[1749511184663,1.31339409,109940.0,109930.0,0.06066716]
[1749511186965,1.31339409,109940.0,109930.0,0.01266716]
[1749511188772,0.1818527,109930.0,109920.0,0.05657256]
[1749511188973,0.40984395,109930.0,109920.0,0.05657256]
[1749511190175,0.41284395,109930.0,109920.0,0.05657256]
[1749511190674,0.41584395,109930.0,109920.0,0.05657256]
[1749511192069,0.1818692,109920.0,109910.0,0.41737256]
[1749511192270,0.89776045,109920.0,109910.0,0.41737256]
[1749511193277,0.89876045,109920.0,109910.0,0.41737256]
[1749511193578,0.89976045,109920.0,109910.0,0.41737256]
[1749511195274,0.7673692,109920.0,109910.0,0.41737256]
[1749511195778,0.89976045,109920.0,109910.0,0.41737256]
[1749511198279,0.89976045,109920.0,109910.0,0.05657256]
[1749511198476,0.1818859,109910.0,109900.0,0.87527267]
[1749511199074,0.2119859,109910.0,109900.0,0.87527267]
[1749511200276,0.34437715,109910.0,109900.0,0.06157256]
[1749511200483,0.40727715,109910.0,109900.0,0.005]
[1749511200682,0.40727715,109910.0,109900.0,0.01744087]
[1749511200874,0.40727715,109910.0,109900.0,0.01745594]
[1749511201180,0.40727715,109910.0,109900.0,0.0175086]
[1749511201781,0.40727715,109910.0,109900.0,0.01750475]
[1749511201982,0.40727715,109910.0,109900.0,0.005]
[1749511202179,0.40727715,109910.0,109900.0,0.01750624]
[1749511202482,0.40727715,109910.0,109900.0,0.01750622]
[1749511202685,0.40727715,109910.0,109900.0,0.005]
[1749511202876,0.47952256,109910.0,109900.0,0.005]
[1749511203072,0.47952256,109910.0,109900.0,0.01750623]
[1749511203782,0.47952256,109910.0,109900.0,0.01750167]
[1749511203982,0.47952256,109910.0,109900.0,0.005]
[1749511204778,0.47952256,109910.0,109900.0,0.01750312]
[1749511204977,1.36280256,109910.0,109900.0,0.01750312]
[1749511205381,1.36280256,109910.0,109900.0,0.005]
[1749511205581,1.36280256,109910.0,109900.0,0.01760132]
[1749511205983,1.36280256,109910.0,109900.0,0.01758852]
[1749511206177,1.36280256,109910.0,109900.0,0.005]
[1749511206384,1.36280256,109910.0,109900.0,0.01767782]
[1749511206578,1.36280256,109910.0,109900.0,0.01766434]
[1749511206778,1.36280256,109910.0,109900.0,0.01766433]
[1749511207284,1.36280256,109910.0,109900.0,0.01766284]
[1749511207585,1.36280256,109910.0,109900.0,0.01766274]
[1749511207982,1.40494964,109910.0,109900.0,0.01772782]
[1749511208184,0.181919,109890.0,109880.0,0.48028662]
[1749511208378,0.31431025,109890.0,109880.0,0.48028662]
[1749511208579,0.89899025,109890.0,109880.0,0.48028662]
[1749511209780,0.89899025,109890.0,109880.0,0.48328662]
[1749511209982,0.89899025,109890.0,109880.0,0.48628662]
[1749511210686,0.37651025,109890.0,109880.0,0.48628662]
[1749511210884,0.89899025,109890.0,109880.0,0.48628662]
[1749511211485,0.766599,109890.0,109880.0,0.48628662]
[1749511211686,0.89899025,109890.0,109880.0,0.48628662]
[1749511212279,0.91346953,109890.0,109880.0,0.48628662]
[1749511213789,0.88286953,109890.0,109880.0,0.48628662]
[1749511213987,0.19639828,109890.0,109880.0,0.66822222]
[1749511214188,0.71891828,109890.0,109880.0,0.66822222]
[1749511214382,0.85130953,109890.0,109880.0,0.66822222]
[1749511216087,0.71891828,109890.0,109880.0,0.66822222]
[1749511216479,0.01447928,109890.0,109880.0,0.80061347]
[1749511216683,0.27300897,109900.0,109890.0,0.181919]
[1749511216889,0.92792022,109900.0,109890.0,0.47972154]
[1749511217083,0.92792022,109900.0,109890.0,0.51212154]
[1749511218090,0.92792022,109900.0,109890.0,0.51312154]
[1749511219592,0.92792022,109900.0,109890.0,0.51412154]
[1749511219790,0.40540022,109900.0,109890.0,0.51412154]
[1749511219985,0.92792022,109900.0,109890.0,0.51412154]
[1749511220489,0.94145334,109900.0,109890.0,0.52651878]
[1749511221293,0.94145334,109900.0,109890.0,0.52647679]
[1749511221687,0.94145334,109900.0,109890.0,0.52647752]
[1749511221890,0.94145334,109900.0,109890.0,0.51412154]
[1749511222083,0.94145334,109900.0,109890.0,0.52647825]
[1749511222798,0.94145334,109900.0,109890.0,0.52648002]
[1749511223092,0.94145334,109900.0,109890.0,0.51412154]
[1749511223292,0.94145334,109900.0,109890.0,0.5264866]
[1749511223590,0.94145334,109900.0,109890.0,0.51412154]
[1749511223790,0.94145334,109900.0,109890.0,0.52648218]
[1749511223995,0.41893334,109900.0,109890.0,0.52648218]
[1749511224195,0.94145334,109900.0,109890.0,0.52648218]
[1749511224393,0.94145334,109900.0,109890.0,0.52648612]
[1749511224691,0.41893334,109900.0,109890.0,0.52648612]
[1749511224895,0.41893334,109900.0,109890.0,0.52647052]
[1749511225086,0.94133334,109900.0,109890.0,0.52647052]
[1749511225288,0.41893334,109900.0,109890.0,0.70838654]
[1749511225484,0.01366949,109900.0,109890.0,0.9132865]
[1749511225688,0.00013637,109900.0,109890.0,1.01777115]
[1749511225893,0.52253637,109900.0,109890.0,0.8853799]
[1749511226600,0.10009637,109900.0,109890.0,1.01777115]
[1749511227502,0.28199917,109900.0,109890.0,1.01777115]
[1749511228995,0.28199917,109900.0,109890.0,0.91377226]
[1749511229500,0.00013637,109900.0,109890.0,1.04616351]
[1749511229703,0.07224541,109910.0,109900.0,0.1819032]
[1749511229892,0.09996,109910.0,109900.0,0.88125626]
[1749511230094,0.17325677,109910.0,109900.0,0.88125626]
[1749511230607,0.35514337,109910.0,109900.0,0.88125626]
[1749511231101,0.17325677,109910.0,109900.0,0.88125626]
[1749511232701,0.60442047,109920.0,109910.0,0.1818866]
[1749511232898,0.70434047,109920.0,109910.0,0.87980016]
[1749511233605,0.52245637,109920.0,109910.0,0.8514761]
[1749511233903,0.53590082,109920.0,109910.0,0.8514761]
[1749511234104,0.53590082,109920.0,109910.0,0.87980016]
[1749511234105,0.53690082,109920.0,109910.0,0.87980016]
[1749511234500,0.53690082,109920.0,109910.0,0.9646764]
[1749511234901,0.71977092,109920.0,109910.0,0.9646764]
[1749511235205,0.53790082,109920.0,109910.0,0.9646764]
[1749511235505,0.53790082,109920.0,109910.0,0.96466945]
[1749511236299,0.71977092,109920.0,109910.0,0.96466945]
[1749511236505,0.53790082,109920.0,109910.0,0.96466945]
[1749511236701,0.01558082,109920.0,109910.0,0.85144714]
[1749511236999,0.71969092,109920.0,109910.0,0.85144714]
[1749511237898,0.53782082,109920.0,109910.0,0.85144714]
[1749511238298,0.11550082,109920.0,109910.0,0.85144714]
[1749511238502,0.10205637,109920.0,109910.0,0.85144714]
[1749511241205,0.28392627,109920.0,109910.0,0.71905589]
[1749511241413,0.28392627,109920.0,109910.0,0.85144714]
[1749511241806,0.18400627,109920.0,109910.0,0.71905589]
[1749511242002,0.28392627,109920.0,109910.0,0.71905589]
[1749511242208,0.28392627,109920.0,109910.0,0.85144714]
[1749511242404,0.29720091,109920.0,109910.0,0.85144714]
[1749511242601,0.11533101,109920.0,109910.0,0.85144714]
[1749511242805,0.10205637,109920.0,109910.0,0.85144714]
[1749511243906,0.28392617,109920.0,109910.0,0.85144714]
[1749511244311,0.29726316,109920.0,109910.0,0.85144714]
[1749511244714,0.29726316,109920.0,109910.0,0.44566929]
[1749511244912,0.1818864,109910.0,109900.0,0.64474187]
[1749511245110,0.6693664,109910.0,109900.0,0.59926667]
[1749511245414,0.6693664,109910.0,109900.0,0.73165792]
[1749511245415,0.2470864,109910.0,109900.0,0.73165792]
[1749511245615,0.7692864,109910.0,109900.0,0.73165792]
[1749511246412,0.7692864,109910.0,109900.0,0.59926667]
[1749511246717,0.2470864,109910.0,109900.0,0.23847097]
[1749511246917,0.7692864,109910.0,109900.0,0.23847097]
[1749511247216,0.7692864,109910.0,109900.0,0.28092297]
[1749511247416,0.7692864,109910.0,109900.0,0.2243549]
[1749511247818,0.84303729,109910.0,109900.0,0.2243549]
[1749511249516,0.32083729,109910.0,109900.0,0.2243549]
[1749511249719,0.07375089,109910.0,109900.0,0.73166222]
[1749511249912,0.01347336,109920.0,109910.0,0.1818864]
[1749511249913,0.00013637,109920.0,109910.0,0.1818864]
[1749511250116,0.00013637,109920.0,109910.0,0.82149237]
[1749511250316,0.52233637,109920.0,109910.0,0.82149237]
[1749511250620,0.53536736,109920.0,109910.0,0.82149237]
[1749511251013,0.01416736,109920.0,109910.0,0.82149237]
[1749511251213,0.53640736,109920.0,109910.0,0.82149237]
[1749511252422,0.53640736,109920.0,109910.0,0.73657765]
[1749511252619,0.53640736,109920.0,109910.0,0.84979996]
[1749511252821,0.01416736,109920.0,109910.0,0.8689689]
[1749511253020,0.52437637,109920.0,109910.0,0.84979996]
[1749511254228,0.00213637,109920.0,109910.0,0.84979996]
[1749511254417,0.00213637,109920.0,109910.0,0.99562295]
[1749511254723,0.10205637,109920.0,109910.0,0.88240064]
[1749511254926,0.00213637,109920.0,109910.0,0.75000939]
[1749511255129,0.10205637,109920.0,109910.0,0.73657765]
[1749511255517,0.10205637,109920.0,109910.0,0.6041864]
[1749511255717,0.10205637,109920.0,109910.0,0.73657765]
[1749511255921,0.00213637,109920.0,109910.0,0.73657765]
[1749511256421,0.10205637,109920.0,109910.0,0.73657765]
[1749511256627,0.10205637,109920.0,109910.0,0.87853946]
[1749511257030,1.60205637,109920.0,109910.0,0.87853946]
[1749511257329,1.50213637,109920.0,109910.0,0.87853946]
[1749511257518,1.60201637,109920.0,109910.0,0.87853946]
[1749511258020,1.60201637,109920.0,109910.0,0.94407477]
[1749511258218,1.60201637,109920.0,109910.0,1.07646602]
[1749511260231,1.50213637,109920.0,109910.0,1.07646602]
[1749511260531,1.60201637,109920.0,109910.0,1.07646602]
[1749511261031,1.60201637,109920.0,109910.0,0.94407477]
[1749511261234,1.60201637,109920.0,109910.0,1.07646602]
[1749511261733,1.50213637,109920.0,109910.0,0.87821443]
[1749511261933,1.60201637,109920.0,109910.0,0.87821443]
[1749511263736,1.60201637,109920.0,109910.0,1.30085443]
[1749511264035,1.60201637,109920.0,109910.0,1.43324568]
[1749511264836,1.60201637,109920.0,109910.0,1.31449443]
[1749511267032,1.60201637,109920.0,109910.0,0.89185443]
[1749511267239,1.60201637,109920.0,109910.0,1.31417443]
[1749511267437,1.60201637,109920.0,109910.0,0.69796318]
[1749511267438,1.78388637,109920.0,109910.0,0.69796318]
[1749511267633,1.87558637,109920.0,109910.0,0.80196333]
[1749511268934,1.87558637,109920.0,109910.0,0.66957208]
[1749511269237,1.87558637,109920.0,109910.0,0.80196333]
[1749511270940,1.77570637,109920.0,109910.0,0.66957208]
[1749511271142,2.29934637,109920.0,109910.0,0.80196333]
[1749511273635,2.43173762,109920.0,109910.0,0.5563264]
[1749511273837,2.43173762,109920.0,109910.0,0.64126728]
[1749511274437,2.29934637,109920.0,109910.0,0.64126728]
[1749511275642,2.43173762,109920.0,109910.0,0.64126728]
[1749511275843,2.43173762,109920.0,109910.0,0.75451296]
[1749511276136,2.43173762,109920.0,109910.0,0.64126728]
[1749511276441,2.43173762,109920.0,109910.0,0.64080728]
[1749511279542,2.43173762,109920.0,109910.0,0.66911208]
[1749511281147,2.43173762,109920.0,109910.0,0.64094931]
[1749511281347,2.43173762,109920.0,109910.0,0.75419499]
[1749511281548,2.43173762,109920.0,109910.0,0.64094931]
[1749511284052,1.90809762,109920.0,109910.0,0.64094931]
[1749511284248,2.43085762,109920.0,109910.0,0.64094931]
[1749511284449,2.43081762,109920.0,109910.0,0.64094931]
[1749511285455,1.77570637,109920.0,109910.0,0.64094931]
[1749511285752,2.29890637,109920.0,109910.0,0.64094931]
[1749511292561,2.29890637,109920.0,109910.0,0.75419499]
[1749511294068,1.77570637,109920.0,109910.0,0.88658624]
[1749511294266,2.29818637,109920.0,109910.0,0.80150333]
[1749511294563,1.74490637,109920.0,109910.0,0.66911208]
[1749511294763,2.26746637,109920.0,109910.0,0.86700333]
[1749511294957,1.92453637,109920.0,109910.0,0.86700333]
[1749511295156,1.92453637,109920.0,109910.0,0.89539443]
[1749511295157,1.50213637,109920.0,109910.0,0.89539443]
[1749511295562,2.02481637,109920.0,109910.0,1.02778568]
[1749511295759,1.50213637,109920.0,109910.0,1.02778568]
[1749511295957,1.60229637,109920.0,109910.0,0.89539443]
[1749511296264,2.02473637,109920.0,109910.0,0.95200924]
[1749511297866,2.02461637,109920.0,109910.0,0.95200924]
[1749511298269,1.50213637,109920.0,109910.0,0.95200924]
[1749511298470,1.60229637,109920.0,109910.0,1.08440049]
[1749511299268,1.50213637,109920.0,109910.0,1.17537649]
[1749511299470,2.02457637,109920.0,109910.0,1.17537649]
[1749511299665,1.60225637,109920.0,109910.0,1.2261836]
[1749511299967,1.60225637,109920.0,109910.0,0.8861489]
[1749511300167,1.60225637,109920.0,109910.0,1.08440049]
[1749511300568,1.60225637,109920.0,109910.0,1.17537649]
[1749511300770,1.50213637,109920.0,109910.0,1.08440049]
[1749511300976,1.60225637,109920.0,109910.0,1.17537649]
[1749511301277,1.60225637,109920.0,109910.0,1.11887084]
[1749511302271,1.50213637,109920.0,109910.0,0.99900855]
[1749511302470,1.50213637,109920.0,109910.0,0.99895736]
[1749511302677,1.50213637,109920.0,109910.0,1.13134861]
[1749511302875,1.50213637,109920.0,109910.0,0.99895736]
[1749511303064,1.50213637,109920.0,109910.0,1.0555142]
[1749511303478,0.00213637,109920.0,109910.0,1.0555142]
[1749511303671,0.00213637,109920.0,109910.0,1.18790545]
[1749511303872,0.00213637,109920.0,109910.0,0.98965386]
[1749511305872,0.00213637,109920.0,109910.0,1.26701365]
[1749511306080,0.00213637,109920.0,109910.0,1.4086899]
[1749511306270,0.00213637,109920.0,109910.0,0.9864099]
[1749511306472,0.00213637,109920.0,109910.0,1.4086899]
[1749511306667,0.001,109920.0,109910.0,1.65438017]
[1749511306872,0.41256,109940.0,109930.0,0.1818531]
[1749511307080,0.51268,109940.0,109930.0,1.17745618]
[1749511307275,0.51268,109940.0,109930.0,1.66443618]
[1749511307980,0.51368,109940.0,109930.0,1.66443618]
[1749511308385,0.41356,109940.0,109930.0,1.66443618]
[1749511308574,0.51368,109940.0,109930.0,1.66443618]
[1749511309176,0.41356,109940.0,109930.0,1.66443618]
[1749511309377,0.51468,109940.0,109930.0,1.66443618]
[1749511309574,0.002,109940.0,109930.0,1.66443618]
[1749511310478,0.002,109940.0,109930.0,1.66897618]
[1749511311085,0.002,109940.0,109930.0,1.54100435]
[1749511311482,0.07344401,109970.0,109940.0,0.1818365]
[1749511311681,0.0317,109990.0,109980.0,0.1817704]
[1749511311886,0.3135739,109990.0,109980.0,1.12060661]
[1749511312182,0.2134539,109990.0,109980.0,1.26643323]
[1749511312374,0.20538363,109990.0,109980.0,1.18158827]
[1749511312579,0.20538363,109990.0,109980.0,1.21821799]
[1749511312779,0.38713753,109990.0,109980.0,1.21821799]
[1749511312979,0.38913753,109990.0,109980.0,1.21821799]
[1749511313179,0.23958363,109990.0,109980.0,1.18591799]
[1749511313381,0.42133753,109990.0,109980.0,1.24238245]
[1749511313886,0.23958363,109990.0,109980.0,1.18591799]
[1749511314081,0.17568363,109990.0,109980.0,1.21821799]
[1749511314286,0.17768363,109990.0,109980.0,1.21821799]
[1749511314486,0.07756363,109990.0,109980.0,1.21821799]
[1749511314689,0.17768363,109990.0,109980.0,1.21821799]
[1749511314889,0.17768363,109990.0,109980.0,1.35060924]
[1749511315586,0.07756363,109990.0,109980.0,1.50798674]
[1749511315785,0.07756363,109990.0,109980.0,1.2658529]
[1749511315987,0.07756363,109990.0,109980.0,1.55562165]
[1749511316689,0.07756363,109990.0,109980.0,1.13346165]
[1749511316878,0.07756363,109990.0,109980.0,1.55558165]
[1749511317789,0.25931753,109990.0,109980.0,1.0010704]
[1749511317990,0.32281753,109990.0,109980.0,1.55558165]
[1749511318590,0.32281753,109990.0,109980.0,1.4231904]
[1749511318791,0.32281753,109990.0,109980.0,1.55558165]
[1749511320092,0.32281753,109990.0,109980.0,1.52328165]
[1749511320996,0.32281753,109990.0,109980.0,1.10116165]
[1749511321191,0.32281753,109990.0,109980.0,0.9033704]
[1749511321387,0.35331753,109990.0,109980.0,0.9033704]
[1749511322191,0.35331753,109990.0,109980.0,1.03576165]
[1749511322688,0.48570878,109990.0,109980.0,0.5425704]
[1749511322894,0.1817707,109980.0,109970.0,0.63360307]
[1749511323090,0.47760195,109980.0,109970.0,0.58815917]
[1749511323392,0.47760195,109980.0,109970.0,0.36093637]
[1749511323588,0.89964195,109980.0,109970.0,0.18192357]
[1749511323989,0.90164195,109980.0,109970.0,0.18192357]
[1749511324396,0.7692507,109980.0,109970.0,0.18192357]
[1749511324690,0.7692507,109980.0,109970.0,0.00013637]
[1749511324901,0.90164195,109980.0,109970.0,0.00013637]
[1749511325994,0.90164195,109980.0,109970.0,0.18192357]
[1749511326196,0.90164195,109980.0,109970.0,0.00013637]
[1749511326392,0.90164195,109980.0,109970.0,0.18192357]
[1749511326996,0.7692507,109980.0,109970.0,0.18192357]
[1749511328795,0.90164195,109980.0,109970.0,0.18192357]
[1749511329697,0.90164195,109980.0,109970.0,0.54272357]
[1749511329993,0.90164195,109980.0,109970.0,0.54726357]
[1749511330199,0.7692507,109980.0,109970.0,0.54726357]
[1749511332100,0.7692507,109980.0,109970.0,0.56089357]
[1749511332401,1.26244195,109980.0,109970.0,0.01830637]
[1749511332601,1.26244195,109980.0,109970.0,0.20009357]
[1749511332999,0.90164195,109980.0,109970.0,0.20009357]
[1749511335202,0.90164195,109980.0,109970.0,0.2425046]
[1749511335901,0.08437605,110020.0,109970.0,1.8182758]
[1749511336112,0.0004,110070.0,110060.0,0.1816385]
[1749511336309,0.07612458,110080.0,110070.0,0.181622]
[1749511336497,0.0328,110100.0,110090.0,0.181589]
[1749511336703,0.0008,110110.0,110100.0,0.1815725]
[1749511336897,0.0008,110110.0,110100.0,0.84688746]
[1749511337206,0.00053637,110120.0,110110.0,0.181556]
[1749511337401,0.00053637,110120.0,110110.0,0.68659407]
[1749511337601,0.10429637,110120.0,110110.0,0.81214983]
[1749511337803,0.00053637,110120.0,110110.0,0.73171176]
[1749511337998,0.00013637,110120.0,110110.0,0.73171176]
[1749511338203,0.10469637,110120.0,110110.0,0.9359422]
[1749511338402,0.00153637,110120.0,110110.0,0.87571338]
[1749511338601,0.10569637,110120.0,110110.0,0.73147531]
[1749511339007,0.00153637,110120.0,110110.0,0.81480595]
[1749511339204,0.00153637,110120.0,110110.0,0.99194402]
[1749511339407,0.10569637,110120.0,110110.0,0.99194402]
[1749511339600,0.00153637,110120.0,110110.0,0.78747713]
[1749511339803,0.10569637,110120.0,110110.0,0.9317152]
[1749511340004,0.10429637,110120.0,110110.0,0.9337152]
[1749511340210,0.10429637,110120.0,110110.0,0.84970595]
[1749511340412,0.10469637,110120.0,110110.0,0.89562452]
[1749511340613,0.10469637,110120.0,110110.0,0.8396227]
[1749511340815,0.13709637,110120.0,110110.0,0.8416227]
[1749511341310,0.13709637,110120.0,110110.0,0.75845067]
[1749511341710,0.10465637,110120.0,110110.0,0.75845067]
[1749511342011,0.10425637,110120.0,110110.0,0.80031264]
[1749511342211,0.00053637,110120.0,110110.0,0.80031264]
[1749511342410,0.10465637,110120.0,110110.0,0.75845067]
[1749511343106,0.00053637,110120.0,110110.0,0.75845067]
[1749511343812,0.10461637,110120.0,110110.0,0.75845067]
[1749511344012,0.10421637,110120.0,110110.0,0.75845067]
[1749511344712,0.10461637,110120.0,110110.0,0.75845067]
[1749511344908,0.00053637,110120.0,110110.0,0.75845067]
[1749511345113,0.10461637,110120.0,110110.0,0.75845067]
[1749511347111,0.00053637,110120.0,110110.0,0.75845067]
[1749511347314,0.10461637,110120.0,110110.0,0.75845067]
[1749511347510,0.10421637,110120.0,110110.0,0.75845067]
[1749511347710,0.10461637,110120.0,110110.0,0.75845067]
[1749511348417,0.28615587,110120.0,110110.0,0.75845067]
[1749511348614,0.10461637,110120.0,110110.0,0.75845067]
[1749511348912,0.18207587,110120.0,110110.0,0.76299067]
[1749511349110,0.28615587,110120.0,110110.0,0.5858526]
[1749511349311,0.49519394,110120.0,110110.0,0.0125966]
[1749511349510,0.92671394,110120.0,110110.0,0.0125966]
[1749511349706,0.92671394,110120.0,110110.0,0.3733966]
[1749511349912,0.78247587,110120.0,110110.0,0.3733966]
[1749511350910,0.78247587,110120.0,110110.0,0.3870166]
[1749511351307,0.24687587,110120.0,110110.0,0.3870166]
[1749511351614,0.78203587,110120.0,110110.0,0.71281067]
[1749511351807,0.78243587,110120.0,110110.0,0.74451067]
[1749511352012,0.24647587,110120.0,110110.0,0.74451067]
[1749511352320,0.35095587,110120.0,110110.0,0.74451067]
[1749511352718,0.10461637,110120.0,110110.0,0.74451067]
[1749511352913,0.00013637,110120.0,110110.0,0.77591067]
[1749511353114,0.10421637,110120.0,110110.0,0.77591067]
[1749511353320,0.10461637,110120.0,110110.0,0.77591067]
[1749511353913,0.28615587,110120.0,110110.0,0.77591067]
[1749511354514,0.10461637,110120.0,110110.0,0.77591067]
[1749511354912,0.00053637,110120.0,110110.0,0.77591067]
[1749511355520,0.10421637,110120.0,110110.0,0.77591067]
[1749511355715,0.10461637,110120.0,110110.0,0.77591067]
[1749511356312,0.10408,110150.0,110140.0,0.1815065]
[1749511356620,0.10408,110150.0,110140.0,1.04734457]
[1749511356621,0.2855701,110150.0,110140.0,1.04734457]
[1749511356817,0.2859701,110150.0,110140.0,1.11134457]
[1749511357213,0.1818901,110150.0,110140.0,1.11134457]
[1749511357522,0.1838901,110150.0,110140.0,0.9344065]
[1749511357722,0.3551701,110150.0,110140.0,0.9344065]
[1749511359217,0.49940817,110150.0,110140.0,0.7216]
[1749511359520,0.49940817,110150.0,110140.0,0.9031066]
[1749511360018,0.3551701,110150.0,110140.0,0.9031066]
[1749511360416,0.49940817,110150.0,110140.0,0.7216]
[1749511360620,0.1815066,110140.0,110130.0,0.54245877]
[1749511360917,0.6768866,110140.0,110130.0,0.54245937]
[1749511361522,0.004,110150.0,110140.0,0.1815066]
[1749511361816,0.002,110150.0,110140.0,0.71984467]
[1749511362023,0.10604,110150.0,110140.0,0.74994467]
[1749511362216,0.10644,110150.0,110140.0,0.8331167]
[1749511362522,0.002,110150.0,110140.0,0.84725655]
[1749511362714,0.2899303,110150.0,110140.0,0.84725655]
[1749511362915,0.3230303,110150.0,110140.0,0.84725655]
[1749511363319,0.0044,110150.0,110140.0,0.87526398]
[1749511363618,0.002,110150.0,110140.0,0.87526398]
[1749511363921,0.10644,110150.0,110140.0,0.79125473]
[1749511364123,0.10844,110150.0,110140.0,0.79125473]
[1749511364317,0.10844,110150.0,110140.0,0.90435082]
[1749511364531,0.0044,110150.0,110140.0,0.90435082]
[1749511364823,0.10844,110150.0,110140.0,0.90435082]
[1749511365518,0.10644,110150.0,110140.0,0.93262484]
[1749511365729,0.10644,110150.0,110140.0,1.36318484]
[1749511366423,0.10468,110180.0,110170.0,0.2268216]
[1749511366623,0.2861209,110180.0,110170.0,1.22469833]
[1749511366923,0.3178209,110180.0,110170.0,1.36966596]
[1749511367114,0.13638,110180.0,110170.0,1.36966596]
[1749511367524,0.13638,110180.0,110170.0,1.26379833]
[1749511367729,0.13638,110180.0,110170.0,1.40516844]
[1749511368024,0.3178209,110180.0,110170.0,1.44386844]
[1749511368223,0.3198209,110180.0,110170.0,1.43686844]
[1749511368621,0.3198209,110180.0,110170.0,1.42986844]
[1749511368821,0.3228209,110180.0,110170.0,1.42986844]
[1749511369327,0.14138,110180.0,110170.0,1.42986844]
[1749511369627,0.10968,110180.0,110170.0,1.42986844]
[1749511369828,0.005,110180.0,110170.0,1.42986844]
[1749511370226,0.10768,110180.0,110170.0,1.42986844]
[1749511370623,0.10468,110180.0,110170.0,1.42986844]
[1749511370826,0.10508,110180.0,110170.0,1.43392504]
[1749511371220,0.17670198,110180.0,110170.0,1.43392504]
[1749511371421,0.17630198,110180.0,110170.0,1.43392504]
[1749511371828,0.17670198,110180.0,110170.0,1.43392504]
[1749511372623,9.092e-05,110190.0,110180.0,0.1814409]
[1749511372828,0.10473092,110190.0,110180.0,1.33293727]
[1749511373425,0.28655532,110190.0,110180.0,0.64585096]
[1749511373632,0.31735532,110190.0,110180.0,0.6961192]
[1749511373825,0.34855532,110190.0,110180.0,0.66794971]
[1749511374020,0.35055532,110190.0,110180.0,0.66794971]
[1749511374221,0.00249092,110190.0,110180.0,0.82579778]
[1749511374425,0.10673092,110190.0,110180.0,1.23263903]
[1749511374627,0.10713092,110190.0,110180.0,1.23263903]
[1749511375025,0.17901304,110190.0,110180.0,1.23263903]
[1749511375735,0.17901304,110190.0,110180.0,1.34520727]
[1749511376029,0.17861304,110190.0,110180.0,1.34520727]
[1749511376225,0.17901304,110190.0,110180.0,1.34520727]
[1749511376426,0.17901304,110190.0,110180.0,1.23263903]
[1749511377229,0.17701304,110190.0,110180.0,1.23263903]
[1749511378225,0.17701304,110190.0,110180.0,1.08840096]
[1749511378424,0.17701304,110190.0,110180.0,1.27563637]
[1749511378831,0.35843744,110190.0,110180.0,0.7011583]
[1749511379030,0.39173744,110190.0,110180.0,1.27499637]
[1749511379332,0.39173744,110190.0,110180.0,1.0697183]
[1749511379528,0.42333744,110190.0,110180.0,0.6446883]
[1749511379929,0.42333744,110190.0,110180.0,0.6466883]
[1749511380123,0.42333744,110190.0,110180.0,0.70390465]
[1749511381334,0.99713551,110190.0,110180.0,0.52246375]
[1749511381634,1.08789551,110190.0,110180.0,0.70390465]
[1749511382035,1.08789551,110190.0,110180.0,0.4662474]
[1749511382531,0.55369551,110190.0,110180.0,0.4662474]
[1749511382735,0.85293744,110190.0,110180.0,0.6476882]
[1749511382936,0.85253744,110190.0,110180.0,0.6476882]
[1749511383124,0.85277744,110190.0,110180.0,0.6476882]
[1749511383329,0.31829744,110190.0,110180.0,0.5633808]
[1749511383736,0.85309744,110190.0,110180.0,0.5633808]
[1749511383935,0.85269744,110190.0,110180.0,0.5633808]
[1749511384339,0.85309744,110190.0,110180.0,0.5633808]
[1749511384934,0.31869744,110190.0,110180.0,0.5633808]
[1749511385132,0.85297744,110190.0,110180.0,0.5633808]
[1749511385525,0.31869744,110190.0,110180.0,0.5633808]
[1749511385729,0.85285744,110190.0,110180.0,0.70761887]
[1749511385929,0.85285744,110190.0,110180.0,0.5674374]
[1749511386134,0.13727304,110190.0,110180.0,0.5674374]
[1749511386437,0.67135304,110190.0,110180.0,0.5674374]
[1749511387149,0.85277744,110190.0,110180.0,0.5674374]
[1749511387340,0.67135304,110190.0,110180.0,0.5674374]
[1749511387543,0.67111304,110190.0,110180.0,0.5674374]
[1749511387842,0.67111304,110190.0,110180.0,0.5990374]
[1749511388146,0.85253744,110190.0,110180.0,0.5990374]
[1749511388746,0.67111304,110190.0,110180.0,0.5674374]